[Event "Titled Tuesday Blitz October 19 2021"]
[White "Aggelis, Nikolaos"]
[Black "Maly, Alexey"]
[WhiteFideId "4213220"]
[BlackFideId "14103184"]
[WhiteElo "2154"]
[BlackElo "2294"]
[Result "1/2-1/2"]
[Round "09"]
[TimeControl "180+1"]
[Date "2021.10.19"]
[WhiteClock "0:00:05"]
[BlackClock "0:00:11"]

1. d4 {[%clk 0:02:42]}  d5 {[%clk 0:02:59]} 2. Nf3 {[%clk 0:02:40]}  Nf6 {[%clk 0:02:59]} 3. c4 {[%clk 0:02:39]}  dxc4 {[%clk 0:02:59]} 4. e3 {[%clk 0:02:22]}  e6 {[%clk 0:02:59]} 5. Bxc4 {[%clk 0:02:21]}  a6 {[%clk 0:03:00]} 6. O-O {[%clk 0:02:20]}  b5 {[%clk 0:03:00]} 7. Be2 {[%clk 0:02:19]}  Bb7 {[%clk 0:03:01]} 8. Ne5 {[%clk 0:02:19]}  c5 {[%clk 0:02:55]} 9. Bf3 {[%clk 0:02:20]}  Qb6 {[%clk 0:02:53]} 10. Bxb7 {[%clk 0:02:19]}  Qxb7 {[%clk 0:02:54]} 11. Qf3 {[%clk 0:02:12]}  Qxf3 {[%clk 0:02:53]} 12. Nxf3 {[%clk 0:02:13]}  Nbd7 {[%clk 0:02:50]} 13. a4 {[%clk 0:02:13]}  b4 {[%clk 0:02:49]} 14. Nbd2 {[%clk 0:02:06]}  Be7 {[%clk 0:02:48]} 15. Nb3 {[%clk 0:02:05]}  O-O {[%clk 0:02:47]} 16. dxc5 {[%clk 0:02:01]}  Nxc5 {[%clk 0:02:47]} 17. Nxc5 {[%clk 0:01:59]}  Bxc5 {[%clk 0:02:47]} 18. Bd2 {[%clk 0:01:59]}  Rac8 {[%clk 0:02:44]} 19. Rfc1 {[%clk 0:01:59]}  a5 {[%clk 0:02:27]} 20. Rc4 {[%clk 0:01:54]}  Be7 {[%clk 0:02:24]} 21. Rac1 {[%clk 0:01:51]}  Rxc4 {[%clk 0:02:23]} 22. Rxc4 {[%clk 0:01:52]}  Rd8 {[%clk 0:02:23]} 23. Kf1 {[%clk 0:01:50]}  Nd7 {[%clk 0:02:20]} 24. Nd4 {[%clk 0:01:45]}  Kf8 {[%clk 0:02:12]} 25. Nc6 {[%clk 0:01:36]}  Ra8 {[%clk 0:01:56]} 26. Nxa5 {[%clk 0:01:17]}  Nb6 {[%clk 0:01:51]} 27. Rc6 {[%clk 0:01:10]}  Nxa4 {[%clk 0:01:49]} 28. Nc4 {[%clk 0:01:06]}  Ke8 {[%clk 0:01:43]} 29. Rc7 {[%clk 0:00:58]}  Rb8 {[%clk 0:01:36]} 30. Ke2 {[%clk 0:00:51]}  Nc5 {[%clk 0:01:28]} 31. Na5 {[%clk 0:00:37]}  Bd6 {[%clk 0:01:22]} 32. Ra7 {[%clk 0:00:30]}  Ne4 {[%clk 0:01:22]} 33. Nc4 {[%clk 0:00:28]}  Bc5 {[%clk 0:01:16]} 34. Ra5 {[%clk 0:00:24]}  Be7 {[%clk 0:01:13]} 35. f3 {[%clk 0:00:23]}  Nc5 {[%clk 0:01:10]} 36. Ra7 {[%clk 0:00:20]}  Nb3 {[%clk 0:01:10]} 37. Na5 {[%clk 0:00:19]}  Nxa5 {[%clk 0:01:03]} 38. Rxa5 {[%clk 0:00:19]}  Rc8 {[%clk 0:01:02]} 39. Rb5 {[%clk 0:00:19]}  Rc2 {[%clk 0:00:59]} 40. b3 {[%clk 0:00:19]}  Rb2 {[%clk 0:00:57]} 41. Kd1 {[%clk 0:00:16]}  Rxb3 {[%clk 0:00:50]} 42. Rb8+ {[%clk 0:00:14]}  Kd7 {[%clk 0:00:47]} 43. Rb7+ {[%clk 0:00:14]}  Kd8 {[%clk 0:00:45]} 44. Rxe7 {[%clk 0:00:13]}  Kxe7 {[%clk 0:00:41]} 45. Kc2 {[%clk 0:00:14]}  Rc3+ {[%clk 0:00:38]} 46. Bxc3 {[%clk 0:00:14]}  bxc3 {[%clk 0:00:39]} 47. Kxc3 {[%clk 0:00:14]}  Kd6 {[%clk 0:00:37]} 48. Kd4 {[%clk 0:00:14]}  e5+ {[%clk 0:00:35]} 49. Kc4 {[%clk 0:00:14]}  f6 {[%clk 0:00:31]} 50. e4 {[%clk 0:00:14]}  h5 {[%clk 0:00:29]} 51. h4 {[%clk 0:00:13]}  Kc6 {[%clk 0:00:27]} 52. Kb4 {[%clk 0:00:10]}  Kb6 {[%clk 0:00:25]} 53. Kc4 {[%clk 0:00:11]}  Kc6 {[%clk 0:00:25]} 54. Kb4 {[%clk 0:00:11]}  g6 {[%clk 0:00:23]} 55. g4 {[%clk 0:00:05]}  Kd6 {[%clk 0:00:21]} 56. Kc4 {[%clk 0:00:04]}  Kc6 {[%clk 0:00:19]} 57. gxh5 {[%clk 0:00:04]}  gxh5 {[%clk 0:00:18]} 58. Kb4 {[%clk 0:00:04]}  Kb6 {[%clk 0:00:16]} 59. Kc4 {[%clk 0:00:05]}  Kc6 {[%clk 0:00:16]} 60. Kb4 {[%clk 0:00:05]}  Kb6 {[%clk 0:00:11]} 61. Kc4 {[%clk 0:00:05]}  Kc6 {[%clk 0:00:11]} 1/2-1/2


[Site "https://www.chess.com"]

[Event "Titled Tuesday Blitz October 19 2021"]
[White "Aradhya, Garg"]
[Black "Indjic, Aleksandar"]
[WhiteFideId "25006746"]
[BlackFideId "911925"]
[WhiteElo "2146"]
[BlackElo "2643"]
[Result "1-0"]
[Round "09"]
[TimeControl "180+1"]
[Date "2021.10.19"]
[WhiteClock "0:00:08"]
[BlackClock "0:00:05"]

1. d4 {[%clk 0:03:00]}  Nf6 {[%clk 0:02:59]} 2. c4 {[%clk 0:03:01]}  c5 {[%clk 0:03:00]} 3. dxc5 {[%clk 0:03:00]}  e6 {[%clk 0:03:00]} 4. Be3 {[%clk 0:02:56]}  Na6 {[%clk 0:02:54]} 5. Nc3 {[%clk 0:02:56]}  Nxc5 {[%clk 0:02:52]} 6. g3 {[%clk 0:02:56]}  Nce4 {[%clk 0:02:41]} 7. Nxe4 {[%clk 0:02:54]}  Nxe4 {[%clk 0:02:41]} 8. Bg2 {[%clk 0:02:54]}  Bb4+ {[%clk 0:02:39]} 9. Kf1 {[%clk 0:02:54]}  Nf6 {[%clk 0:02:38]} 10. Nf3 {[%clk 0:02:30]}  O-O {[%clk 0:02:38]} 11. Ne5 {[%clk 0:02:24]}  d6 {[%clk 0:02:36]} 12. Nd3 {[%clk 0:02:24]}  Ba5 {[%clk 0:02:36]} 13. Rc1 {[%clk 0:02:20]}  Bc7 {[%clk 0:02:35]} 14. c5 {[%clk 0:02:13]}  d5 {[%clk 0:02:34]} 15. Bf4 {[%clk 0:02:11]}  a5 {[%clk 0:02:26]} 16. Qd2 {[%clk 0:02:09]}  Re8 {[%clk 0:02:24]} 17. Be5 {[%clk 0:02:05]}  Ne4 {[%clk 0:02:13]} 18. Bxe4 {[%clk 0:01:37]}  dxe4 {[%clk 0:02:12]} 19. Bxc7 {[%clk 0:01:37]}  Qxc7 {[%clk 0:02:11]} 20. Qf4 {[%clk 0:01:37]}  e5 {[%clk 0:02:04]} 21. Qxe4 {[%clk 0:01:36]}  Bd7 {[%clk 0:02:03]} 22. Qe3 {[%clk 0:01:23]}  Bc6 {[%clk 0:02:02]} 23. Rg1 {[%clk 0:01:23]}  Rad8 {[%clk 0:02:01]} 24. h4 {[%clk 0:01:22]}  f6 {[%clk 0:01:52]} 25. g4 {[%clk 0:01:19]}  Rd4 {[%clk 0:01:50]} 26. f3 {[%clk 0:01:16]}  Qf7 {[%clk 0:01:38]} 27. b3 {[%clk 0:01:08]}  Red8 {[%clk 0:01:36]} 28. Nf2 {[%clk 0:01:06]}  a4 {[%clk 0:01:16]} 29. Kg2 {[%clk 0:00:53]}  h5 {[%clk 0:01:06]} 30. Kh2 {[%clk 0:00:47]}  Qe7 {[%clk 0:00:26]} 31. a3 {[%clk 0:00:26]}  axb3 {[%clk 0:00:25]} 32. Qxb3+ {[%clk 0:00:26]}  Kh8 {[%clk 0:00:26]} 33. Qe3 {[%clk 0:00:24]}  f5 {[%clk 0:00:23]} 34. Qg5 {[%clk 0:00:23]}  Qxg5 {[%clk 0:00:23]} 35. hxg5 {[%clk 0:00:24]}  hxg4 {[%clk 0:00:23]} 36. fxg4 {[%clk 0:00:24]}  f4 {[%clk 0:00:24]} 37. Rgd1 {[%clk 0:00:23]}  Kh7 {[%clk 0:00:23]} 38. Rxd4 {[%clk 0:00:23]}  Rxd4 {[%clk 0:00:24]} 39. Kg1 {[%clk 0:00:21]}  Kg6 {[%clk 0:00:24]} 40. Nd3 {[%clk 0:00:21]}  Re4 {[%clk 0:00:21]} 41. Kf2 {[%clk 0:00:20]}  Kxg5 {[%clk 0:00:22]} 42. Rb1 {[%clk 0:00:16]}  Re3 {[%clk 0:00:19]} 43. Rb6 {[%clk 0:00:14]}  e4 {[%clk 0:00:18]} 44. Ne5 {[%clk 0:00:13]}  Rxa3 {[%clk 0:00:17]} 45. Nxc6 {[%clk 0:00:13]}  bxc6 {[%clk 0:00:17]} 46. Rxc6 {[%clk 0:00:14]}  Ra2 {[%clk 0:00:16]} 47. Re6 {[%clk 0:00:14]}  Kxg4 {[%clk 0:00:10]} 48. Rxe4 {[%clk 0:00:13]}  Rc2 {[%clk 0:00:10]} 49. Re5 {[%clk 0:00:13]}  g5 {[%clk 0:00:11]} 50. Kg2 {[%clk 0:00:13]}  Kh4 {[%clk 0:00:09]} 51. Kf3 {[%clk 0:00:13]}  Rc3+ {[%clk 0:00:09]} 52. e3 {[%clk 0:00:13]}  fxe3 {[%clk 0:00:08]} 53. Rxe3 {[%clk 0:00:11]}  g4+ {[%clk 0:00:08]} 54. Kf4 {[%clk 0:00:08]}  Rxe3 {[%clk 0:00:08]} 55. Kxe3 {[%clk 0:00:08]}  g3 {[%clk 0:00:08]} 56. c6 {[%clk 0:00:08]}  Kh3 {[%clk 0:00:02]} 57. c7 {[%clk 0:00:08]}  g2 {[%clk 0:00:03]} 58. c8=Q+ {[%clk 0:00:08]}  Kg3 {[%clk 0:00:04]} 59. Qg8+ {[%clk 0:00:08]}  Kh2 {[%clk 0:00:05]} 60. Kf2 {[%clk 0:00:08]}  g1=Q+ {[%clk 0:00:05]} 61. Qxg1+ {[%clk 0:00:08]} 1-0


[Site "https://www.chess.com"]

[Event "Titled Tuesday Blitz October 19 2021"]
[White "Bluebaum, Matthias"]
[Black "Ozen, Bahadir"]
[WhiteFideId "24651516"]
[BlackFideId "6337058"]
[WhiteElo "2681"]
[BlackElo "2503"]
[Result "1/2-1/2"]
[Round "09"]
[TimeControl "180+1"]
[Date "2021.10.19"]
[WhiteClock "0:00:04"]
[BlackClock "0:00:05"]

1. d4 {[%clk 0:03:00]}  d5 {[%clk 0:02:59]} 2. Nf3 {[%clk 0:03:01]}  Nf6 {[%clk 0:02:59]} 3. Bf4 {[%clk 0:03:00]}  Bf5 {[%clk 0:02:58]} 4. c4 {[%clk 0:03:00]}  Bxb1 {[%clk 0:02:52]} 5. Rxb1 {[%clk 0:02:53]}  e6 {[%clk 0:02:51]} 6. Qb3 {[%clk 0:02:51]}  Qc8 {[%clk 0:02:47]} 7. e3 {[%clk 0:02:47]}  Bd6 {[%clk 0:02:38]} 8. Bg5 {[%clk 0:02:45]}  Nbd7 {[%clk 0:02:32]} 9. Rc1 {[%clk 0:02:40]}  c6 {[%clk 0:02:31]} 10. Bd3 {[%clk 0:02:37]}  O-O {[%clk 0:02:30]} 11. O-O {[%clk 0:02:37]}  h6 {[%clk 0:02:28]} 12. Bh4 {[%clk 0:02:37]}  a5 {[%clk 0:02:18]} 13. a3 {[%clk 0:02:36]}  a4 {[%clk 0:02:17]} 14. Qc2 {[%clk 0:02:30]}  Qb8 {[%clk 0:02:18]} 15. Rfd1 {[%clk 0:02:18]}  Re8 {[%clk 0:02:17]} 16. e4 {[%clk 0:02:00]}  dxe4 {[%clk 0:02:17]} 17. Bxe4 {[%clk 0:02:00]}  Bf4 {[%clk 0:02:14]} 18. Rb1 {[%clk 0:01:59]}  Ra5 {[%clk 0:02:00]} 19. Bd3 {[%clk 0:01:57]}  Bc7 {[%clk 0:01:59]} 20. b4 {[%clk 0:01:45]}  axb3 {[%clk 0:01:58]} 21. Qxb3 {[%clk 0:01:44]}  b6 {[%clk 0:01:42]} 22. Bc2 {[%clk 0:01:16]}  Qa7 {[%clk 0:01:40]} 23. a4 {[%clk 0:01:16]}  Rh5 {[%clk 0:01:27]} 24. Re1 {[%clk 0:01:03]}  Qa5 {[%clk 0:01:23]} 25. Qd3 {[%clk 0:00:51]}  Qa8 {[%clk 0:01:22]} 26. Re2 {[%clk 0:00:48]}  Qb8 {[%clk 0:01:17]} 27. Bg3 {[%clk 0:00:43]}  Bxg3 {[%clk 0:01:16]} 28. hxg3 {[%clk 0:00:44]}  Ra5 {[%clk 0:01:12]} 29. Qc3 {[%clk 0:00:35]}  Qc7 {[%clk 0:01:10]} 30. Rbe1 {[%clk 0:00:33]}  Rd8 {[%clk 0:01:07]} 31. Qe3 {[%clk 0:00:29]}  Ng4 {[%clk 0:01:00]} 32. Qc3 {[%clk 0:00:27]}  Ngf6 {[%clk 0:01:01]} 33. Rd1 {[%clk 0:00:27]}  Raa8 {[%clk 0:00:59]} 34. Red2 {[%clk 0:00:28]}  Ra7 {[%clk 0:00:58]} 35. Qe3 {[%clk 0:00:28]}  Raa8 {[%clk 0:00:56]} 36. Qe2 {[%clk 0:00:24]}  Rab8 {[%clk 0:00:54]} 37. Ne5 {[%clk 0:00:24]}  Nxe5 {[%clk 0:00:54]} 38. dxe5 {[%clk 0:00:25]}  Nd7 {[%clk 0:00:52]} 39. Qd3 {[%clk 0:00:24]}  g6 {[%clk 0:00:49]} 40. Qe3 {[%clk 0:00:22]}  Kg7 {[%clk 0:00:42]} 41. Qf4 {[%clk 0:00:21]}  g5 {[%clk 0:00:19]} 42. Qe4 {[%clk 0:00:21]}  Nf8 {[%clk 0:00:19]} 43. Rd6 {[%clk 0:00:21]}  c5 {[%clk 0:00:18]} 44. f4 {[%clk 0:00:20]}  Qe7 {[%clk 0:00:18]} 45. f5 {[%clk 0:00:20]}  exf5 {[%clk 0:00:19]} 46. Qxf5 {[%clk 0:00:21]}  Rxd6 {[%clk 0:00:15]} 47. exd6 {[%clk 0:00:21]}  Qf6 {[%clk 0:00:15]} 48. Qd3 {[%clk 0:00:16]}  Rd8 {[%clk 0:00:15]} 49. Qd5 {[%clk 0:00:15]}  Ne6 {[%clk 0:00:10]} 50. Qe4 {[%clk 0:00:08]}  Nf8 {[%clk 0:00:09]} 51. Qc6 {[%clk 0:00:06]}  Nd7 {[%clk 0:00:06]} 52. Rf1 {[%clk 0:00:05]}  Qd4+ {[%clk 0:00:07]} 53. Kh1 {[%clk 0:00:05]}  Ne5 {[%clk 0:00:05]} 54. Qxb6 {[%clk 0:00:05]}  Rxd6 {[%clk 0:00:06]} 55. Qc7 {[%clk 0:00:04]}  h5 {[%clk 0:00:06]} 56. Bf5 {[%clk 0:00:04]}  Rh6 {[%clk 0:00:05]} 57. Bh3 {[%clk 0:00:03]}  h4 {[%clk 0:00:05]} 58. gxh4 {[%clk 0:00:04]}  g4 {[%clk 0:00:04]} 59. Rf5 {[%clk 0:00:03]}  gxh3 {[%clk 0:00:02]} 60. Qxe5+ {[%clk 0:00:03]}  Qxe5 {[%clk 0:00:02]} 61. Rxe5 {[%clk 0:00:03]}  hxg2+ {[%clk 0:00:03]} 62. Kxg2 {[%clk 0:00:04]}  Rxh4 {[%clk 0:00:04]} 63. Rxc5 {[%clk 0:00:05]}  Kf6 {[%clk 0:00:04]} 64. a5 {[%clk 0:00:05]}  Ke6 {[%clk 0:00:05]} 65. a6 {[%clk 0:00:06]}  Rh8 {[%clk 0:00:05]} 66. Kf3 {[%clk 0:00:06]}  Ra8 {[%clk 0:00:04]} 67. Ra5 {[%clk 0:00:07]}  Kd6 {[%clk 0:00:05]} 68. Ke4 {[%clk 0:00:07]}  Kc6 {[%clk 0:00:05]} 69. Kd4 {[%clk 0:00:08]}  Kb6 {[%clk 0:00:05]} 70. Rf5 {[%clk 0:00:08]}  Ra7 {[%clk 0:00:04]} 71. Rf6+ {[%clk 0:00:08]}  Ka5 {[%clk 0:00:04]} 72. Kc5 {[%clk 0:00:09]}  Rxa6 {[%clk 0:00:02]} 73. Rxf7 {[%clk 0:00:09]}  Ra8 {[%clk 0:00:02]} 74. Rc7 {[%clk 0:00:09]}  Ka6 {[%clk 0:00:02]} 75. Rg7 {[%clk 0:00:03]}  Rc8+ {[%clk 0:00:02]} 76. Kd5 {[%clk 0:00:03]}  Kb6 {[%clk 0:00:03]} 77. Rg6+ {[%clk 0:00:03]}  Kc7 {[%clk 0:00:04]} 78. Rg7+ {[%clk 0:00:03]}  Kb6 {[%clk 0:00:04]} 79. Rg6+ {[%clk 0:00:04]}  Kb7 {[%clk 0:00:04]} 80. c5 {[%clk 0:00:04]}  Rd8+ {[%clk 0:00:04]} 81. Kc4 {[%clk 0:00:04]}  Rd1 {[%clk 0:00:04]} 82. Rd6 {[%clk 0:00:03]}  Rxd6 {[%clk 0:00:04]} 83. cxd6 {[%clk 0:00:04]}  Kc6 {[%clk 0:00:04]} 84. d7 {[%clk 0:00:04]}  Kxd7 {[%clk 0:00:05]} 1/2-1/2


[Site "https://www.chess.com"]

[Event "Titled Tuesday Blitz October 19 2021"]
[White "Demchenko, Anton"]
[Black "Nagy, Gabor"]
[WhiteFideId "4160258"]
[BlackFideId "737119"]
[WhiteElo "2583"]
[BlackElo "2534"]
[Result "1-0"]
[Round "09"]
[TimeControl "180+1"]
[Date "2021.10.19"]
[WhiteClock "0:00:07"]
[BlackClock "0:00:14"]

1. e4 {[%clk 0:03:00]}  g6 {[%clk 0:02:58]} 2. d4 {[%clk 0:03:00]}  Bg7 {[%clk 0:02:59]} 3. Nf3 {[%clk 0:03:01]}  d6 {[%clk 0:02:59]} 4. Be2 {[%clk 0:03:01]}  Nf6 {[%clk 0:02:59]} 5. Nc3 {[%clk 0:03:00]}  O-O {[%clk 0:02:59]} 6. O-O {[%clk 0:03:01]}  Nc6 {[%clk 0:02:57]} 7. d5 {[%clk 0:02:58]}  Nb8 {[%clk 0:02:57]} 8. h3 {[%clk 0:02:57]}  c6 {[%clk 0:02:57]} 9. a4 {[%clk 0:02:57]}  b6 {[%clk 0:02:56]} 10. Re1 {[%clk 0:02:55]}  Bb7 {[%clk 0:02:54]} 11. Bc4 {[%clk 0:02:53]}  Nbd7 {[%clk 0:02:53]} 12. Bg5 {[%clk 0:02:48]}  Rc8 {[%clk 0:02:51]} 13. dxc6 {[%clk 0:02:42]}  Bxc6 {[%clk 0:02:52]} 14. Ba6 {[%clk 0:02:41]}  Rb8 {[%clk 0:02:40]} 15. Bb5 {[%clk 0:02:38]}  Bb7 {[%clk 0:02:35]} 16. Nd5 {[%clk 0:02:27]}  h6 {[%clk 0:02:20]} 17. Bc1 {[%clk 0:02:14]}  Nxd5 {[%clk 0:02:07]} 18. exd5 {[%clk 0:02:14]}  Nf6 {[%clk 0:02:08]} 19. Bc4 {[%clk 0:02:14]}  Qc7 {[%clk 0:02:07]} 20. Bb3 {[%clk 0:02:14]}  Rfe8 {[%clk 0:02:01]} 21. c3 {[%clk 0:02:11]}  Rbc8 {[%clk 0:01:58]} 22. Be3 {[%clk 0:02:08]}  Qb8 {[%clk 0:01:56]} 23. Qd2 {[%clk 0:02:07]}  Qa8 {[%clk 0:01:52]} 24. Rad1 {[%clk 0:02:06]}  Kh7 {[%clk 0:01:48]} 25. Ba2 {[%clk 0:01:51]}  e5 {[%clk 0:01:45]} 26. dxe6 {[%clk 0:01:47]}  Bxf3 {[%clk 0:01:46]} 27. gxf3 {[%clk 0:01:33]}  Qxf3 {[%clk 0:01:32]} 28. Qxd6 {[%clk 0:01:23]}  Ne4 {[%clk 0:01:14]} 29. Qf4 {[%clk 0:01:08]}  Ng5 {[%clk 0:01:13]} 30. Qxf3 {[%clk 0:00:41]}  Nxf3+ {[%clk 0:01:14]} 31. Kf1 {[%clk 0:00:41]}  Nxe1 {[%clk 0:01:07]} 32. exf7 {[%clk 0:00:42]}  Rxe3 {[%clk 0:01:07]} 33. fxe3 {[%clk 0:00:38]}  Nf3 {[%clk 0:01:08]} 34. Rd7 {[%clk 0:00:36]}  a5 {[%clk 0:01:04]} 35. Rd6 {[%clk 0:00:36]}  Rb8 {[%clk 0:00:50]} 36. Ke2 {[%clk 0:00:31]}  Ne5 {[%clk 0:00:48]} 37. b4 {[%clk 0:00:31]}  axb4 {[%clk 0:00:35]} 38. cxb4 {[%clk 0:00:31]}  Rf8 {[%clk 0:00:22]} 39. Rxb6 {[%clk 0:00:29]}  Nxf7 {[%clk 0:00:22]} 40. a5 {[%clk 0:00:23]}  Ng5 {[%clk 0:00:21]} 41. Bb1 {[%clk 0:00:14]}  Nxh3 {[%clk 0:00:17]} 42. Bxg6+ {[%clk 0:00:14]}  Kh8 {[%clk 0:00:17]} 43. a6 {[%clk 0:00:15]}  Rf2+ {[%clk 0:00:17]} 44. Kd3 {[%clk 0:00:15]}  Ra2 {[%clk 0:00:14]} 45. Rb8+ {[%clk 0:00:06]}  Bf8 {[%clk 0:00:14]} 46. Rxf8+ {[%clk 0:00:05]}  Kg7 {[%clk 0:00:14]} 47. Ra8 {[%clk 0:00:06]}  Ra3+ {[%clk 0:00:14]} 48. Kc4 {[%clk 0:00:05]}  Kxg6 {[%clk 0:00:15]} 49. b5 {[%clk 0:00:06]}  Kg7 {[%clk 0:00:15]} 50. b6 {[%clk 0:00:06]}  Ng5 {[%clk 0:00:16]} 51. b7 {[%clk 0:00:07]}  Nf7 {[%clk 0:00:12]} 52. b8=Q {[%clk 0:00:07]}  h5 {[%clk 0:00:13]} 53. Qf8+ {[%clk 0:00:07]}  Kf6 {[%clk 0:00:14]} 54. Qxa3 {[%clk 0:00:07]} 1-0


[Site "https://www.chess.com"]

[Event "Titled Tuesday Blitz October 19 2021"]
[White "Durarbayli, Vasif"]
[Black "Nozdrachev, Leonid"]
[WhiteFideId "13402935"]
[BlackFideId "24113433"]
[WhiteElo "2522"]
[BlackElo "2124"]
[Result "1-0"]
[Round "09"]
[TimeControl "180+1"]
[Date "2021.10.19"]
[WhiteClock "0:00:28"]
[BlackClock "0:00:01"]

1. e4 {[%clk 0:03:00]}  c6 {[%clk 0:02:59]} 2. Nc3 {[%clk 0:02:59]}  d5 {[%clk 0:02:59]} 3. Nf3 {[%clk 0:02:58]}  dxe4 {[%clk 0:02:59]} 4. Nxe4 {[%clk 0:02:59]}  Nf6 {[%clk 0:02:59]} 5. Qe2 {[%clk 0:02:58]}  Nxe4 {[%clk 0:02:56]} 6. Qxe4 {[%clk 0:02:59]}  Qd5 {[%clk 0:02:56]} 7. Qf4 {[%clk 0:02:47]}  Qf5 {[%clk 0:02:28]} 8. Qe3 {[%clk 0:02:46]}  Nd7 {[%clk 0:02:24]} 9. Bd3 {[%clk 0:02:38]}  Qh5 {[%clk 0:02:04]} 10. b3 {[%clk 0:02:24]}  Nc5 {[%clk 0:01:51]} 11. Be2 {[%clk 0:02:18]}  e6 {[%clk 0:01:08]} 12. Bb2 {[%clk 0:02:12]}  Qg6 {[%clk 0:01:04]} 13. O-O-O {[%clk 0:02:12]}  Be7 {[%clk 0:00:50]} 14. Ne5 {[%clk 0:02:08]}  Qe4 {[%clk 0:00:45]} 15. Bh5 {[%clk 0:01:44]}  O-O {[%clk 0:00:37]} 16. Qg3 {[%clk 0:01:26]}  Qh4 {[%clk 0:00:35]} 17. Nxc6 {[%clk 0:01:19]}  Bg5 {[%clk 0:00:11]} 18. Ne7+ {[%clk 0:01:02]}  Kh8 {[%clk 0:00:08]} 19. Qe5 {[%clk 0:00:57]}  Bf6 {[%clk 0:00:07]} 20. Qxc5 {[%clk 0:00:55]}  Bxe7 {[%clk 0:00:07]} 21. Qd4 {[%clk 0:00:46]}  Bf6 {[%clk 0:00:06]} 22. Qxh4 {[%clk 0:00:45]}  Bxh4 {[%clk 0:00:07]} 23. g3 {[%clk 0:00:46]}  Bf6 {[%clk 0:00:06]} 24. Bxf6 {[%clk 0:00:45]}  gxf6 {[%clk 0:00:07]} 25. Bf3 {[%clk 0:00:46]}  Rb8 {[%clk 0:00:06]} 26. Rhe1 {[%clk 0:00:45]}  Bd7 {[%clk 0:00:06]} 27. d4 {[%clk 0:00:43]}  Bc6 {[%clk 0:00:05]} 28. d5 {[%clk 0:00:43]}  Bxd5 {[%clk 0:00:04]} 29. Bxd5 {[%clk 0:00:44]}  exd5 {[%clk 0:00:05]} 30. Rxd5 {[%clk 0:00:44]}  Rfe8 {[%clk 0:00:05]} 31. Rxe8+ {[%clk 0:00:37]}  Rxe8 {[%clk 0:00:06]} 32. Kd2 {[%clk 0:00:37]}  Re7 {[%clk 0:00:05]} 33. a4 {[%clk 0:00:35]}  Kg7 {[%clk 0:00:06]} 34. a5 {[%clk 0:00:35]}  Kg6 {[%clk 0:00:03]} 35. c4 {[%clk 0:00:32]}  f5 {[%clk 0:00:03]} 36. b4 {[%clk 0:00:32]}  Kg5 {[%clk 0:00:03]} 37. Rd4 {[%clk 0:00:32]}  Rc7 {[%clk 0:00:01]} 38. Kd3 {[%clk 0:00:32]}  Kf6 {[%clk 0:00:02]} 39. b5 {[%clk 0:00:30]}  Rc5 {[%clk 0:00:01]} 40. Kc3 {[%clk 0:00:28]} 1-0


[Site "https://www.chess.com"]

[Event "Titled Tuesday Blitz October 19 2021"]
[White "Erdogdu, Mert"]
[Black "Bortnyk, Olexandr"]
[WhiteFideId "6301495"]
[BlackFideId "14120828"]
[WhiteElo "2485"]
[BlackElo "2723"]
[Result "0-1"]
[Round "09"]
[TimeControl "180+1"]
[Date "2021.10.19"]
[WhiteClock "0:01:02"]
[BlackClock "0:00:41"]

1. e4 {[%clk 0:03:00]}  Nf6 {[%clk 0:02:59]} 2. e5 {[%clk 0:03:01]}  Nd5 {[%clk 0:03:00]} 3. c4 {[%clk 0:03:01]}  Nb6 {[%clk 0:03:00]} 4. d4 {[%clk 0:02:59]}  d6 {[%clk 0:03:00]} 5. exd6 {[%clk 0:03:00]}  exd6 {[%clk 0:03:01]} 6. Nc3 {[%clk 0:03:00]}  Be7 {[%clk 0:03:01]} 7. Bd3 {[%clk 0:03:00]}  O-O {[%clk 0:03:01]} 8. Nf3 {[%clk 0:03:00]}  Bg4 {[%clk 0:03:01]} 9. h3 {[%clk 0:03:00]}  Bh5 {[%clk 0:03:01]} 10. O-O {[%clk 0:03:00]}  Nc6 {[%clk 0:03:01]} 11. Be3 {[%clk 0:02:52]}  Bf6 {[%clk 0:02:58]} 12. c5 {[%clk 0:02:46]}  dxc5 {[%clk 0:02:55]} 13. dxc5 {[%clk 0:02:46]}  Bxf3 {[%clk 0:02:47]} 14. gxf3 {[%clk 0:02:45]}  Nd7 {[%clk 0:02:44]} 15. Nd5 {[%clk 0:02:29]}  Nde5 {[%clk 0:02:19]} 16. Be2 {[%clk 0:02:16]}  Ng6 {[%clk 0:01:59]} 17. f4 {[%clk 0:02:11]}  Bxb2 {[%clk 0:01:51]} 18. Rb1 {[%clk 0:02:11]}  Bd4 {[%clk 0:01:50]} 19. Bxd4 {[%clk 0:01:50]}  Qxd5 {[%clk 0:01:49]} 20. Be3 {[%clk 0:01:50]}  Qf5 {[%clk 0:01:23]} 21. Bg4 {[%clk 0:01:47]}  Qf6 {[%clk 0:01:23]} 22. Rxb7 {[%clk 0:01:43]}  Nxf4 {[%clk 0:01:01]} 23. Rxc7 {[%clk 0:01:30]}  Ne5 {[%clk 0:00:56]} 24. Kh2 {[%clk 0:01:19]}  Rad8 {[%clk 0:00:45]} 25. Qb3 {[%clk 0:01:02]}  Nxg4+ {[%clk 0:00:40]} 26. hxg4 {[%clk 0:01:02]}  Qh4+ {[%clk 0:00:41]} 0-1


[Site "https://www.chess.com"]

[Event "Titled Tuesday Blitz October 19 2021"]
[White "Gurvich, Vitaly"]
[Black "Timmermans, Mark"]
[WhiteFideId "24164852"]
[BlackFideId "1026399"]
[WhiteElo "2275"]
[BlackElo "2460"]
[Result "1-0"]
[Round "09"]
[TimeControl "180+1"]
[Date "2021.10.19"]
[WhiteClock "0:01:02"]
[BlackClock "0:00:22"]

1. e4 {[%clk 0:03:00]}  e5 {[%clk 0:02:59]} 2. Nf3 {[%clk 0:02:59]}  Nc6 {[%clk 0:02:53]} 3. Bb5 {[%clk 0:02:54]}  a6 {[%clk 0:02:53]} 4. Bxc6 {[%clk 0:02:53]}  dxc6 {[%clk 0:02:53]} 5. Nc3 {[%clk 0:02:53]}  Bd6 {[%clk 0:02:51]} 6. d4 {[%clk 0:02:48]}  Bg4 {[%clk 0:02:48]} 7. dxe5 {[%clk 0:02:47]}  Bxf3 {[%clk 0:02:46]} 8. Qxf3 {[%clk 0:02:46]}  Bxe5 {[%clk 0:02:46]} 9. Bf4 {[%clk 0:02:45]}  Qf6 {[%clk 0:02:38]} 10. Bxe5 {[%clk 0:02:43]}  Qxe5 {[%clk 0:02:39]} 11. Qg4 {[%clk 0:02:38]}  Ne7 {[%clk 0:02:36]} 12. O-O-O {[%clk 0:02:37]}  O-O {[%clk 0:02:36]} 13. Rd7 {[%clk 0:02:31]}  Ng6 {[%clk 0:02:24]} 14. g3 {[%clk 0:02:25]}  Rac8 {[%clk 0:01:50]} 15. f4 {[%clk 0:02:24]}  Qc5 {[%clk 0:01:43]} 16. Rhd1 {[%clk 0:02:23]}  f5 {[%clk 0:01:36]} 17. exf5 {[%clk 0:02:22]}  Qxf5 {[%clk 0:01:32]} 18. Qxf5 {[%clk 0:02:20]}  Rxf5 {[%clk 0:01:33]} 19. Ne4 {[%clk 0:02:21]}  h6 {[%clk 0:01:28]} 20. Rd8+ {[%clk 0:02:19]}  Rf8 {[%clk 0:01:25]} 21. Rxc8 {[%clk 0:02:13]}  Rxc8 {[%clk 0:01:26]} 22. Nc5 {[%clk 0:02:13]}  b6 {[%clk 0:01:16]} 23. Nxa6 {[%clk 0:02:12]}  Nf8 {[%clk 0:01:16]} 24. Nb4 {[%clk 0:02:11]}  c5 {[%clk 0:01:15]} 25. Nc6 {[%clk 0:02:08]}  Kf7 {[%clk 0:01:15]} 26. Re1 {[%clk 0:02:03]}  Re8 {[%clk 0:01:04]} 27. Ne5+ {[%clk 0:02:02]}  Kg8 {[%clk 0:00:59]} 28. Kd2 {[%clk 0:02:01]}  Rd8+ {[%clk 0:00:57]} 29. Kc3 {[%clk 0:01:58]}  Ra8 {[%clk 0:00:52]} 30. a3 {[%clk 0:01:57]}  Ne6 {[%clk 0:00:52]} 31. Nc6 {[%clk 0:01:55]}  Kf7 {[%clk 0:00:41]} 32. Kc4 {[%clk 0:01:53]}  Nd4 {[%clk 0:00:34]} 33. Re7+ {[%clk 0:01:21]}  Kf6 {[%clk 0:00:33]} 34. Rxc7 {[%clk 0:01:21]}  Ra4+ {[%clk 0:00:33]} 35. Kd3 {[%clk 0:01:12]}  Ne6 {[%clk 0:00:28]} 36. Rb7 {[%clk 0:01:03]}  g5 {[%clk 0:00:23]} 37. Rxb6 {[%clk 0:01:02]}  Kf5 {[%clk 0:00:22]} 38. Ne7+ {[%clk 0:01:01]}  Kf6 {[%clk 0:00:22]} 39. Nd5+ {[%clk 0:01:01]}  Kf5 {[%clk 0:00:22]} 40. Ne3+ {[%clk 0:01:01]}  Kf6 {[%clk 0:00:22]} 41. f5 {[%clk 0:01:02]} 1-0


[Site "https://www.chess.com"]